[Event "FIDE Women GP Monaco 2019"]
[Site "Monaco"]
[Date "2019.12.07"]
[Round "5.5"]
[White "Muzychuk, Anna"]
[Black "Kosteniuk, Alexandra"]
[Result "0-1"]
[ECO "C43"]
[WhiteElo "2537"]
[BlackElo "2483"]
[Annotator "ChessBase"]
[PlyCount "124"]
[EventDate "2019.12.03"]
[EventType "tourn"]
[EventCountry "MNC"]
[SourceTitle "playchess.com"]
[Source "ChessBase"]
[SourceQuality "1"]
[TimeControl "40/5400+30:1800+30"]

1. e4 {[%emt 0:00:00]} e5 {[%emt 0:00:00]} 2. Nf3 {[%emt 0:00:00]} Nf6 {[%emt 0:00:00]} 3. d4 {[%emt 0:00:04]} Nxe4 {[%emt 0:00:00]} 4. Bd3 {[%emt 0:00:10]} d5 {[%emt 0:00:00]} 5. Nxe5 {[%emt 0:00:21]} Nd7 {[%emt 0:00:04]} 6. Nxd7 {[%emt 0:00:20]} Bxd7 {[%emt 0:00:06]} 7. O-O {[%emt 0:00:43]} Be7 {[%emt 0:00:05]} 8. c4 {[%emt 0:00:54]} Nf6 {[%emt 0:03:13]} 9. c5 {[%emt 0:01:18]} b6 {[%emt 0:09:01]} 10. Qc2 {[%emt 0:03:03]} bxc5 {[%emt 0:07:11]} 11. dxc5 {[%emt 0:00:09]} Bc6 {[%emt 0:01:14]} 12. Nd2 {[%emt 0:12:52]} d4 {[%emt 0:05:40]} 13. Re1 {[%emt 0:08:13]} O-O {[%emt 0:05:57]} 14. Nc4 {[%emt 0:04:04]} a5 {[%emt 0:16:25]} 15. Bd2 {[%emt 0:07:07]} Qd5 {[%emt 0:14:58]} 16. f3 {[%emt 0:03:14]} Qxc5 {[%emt 0:00:31]} 17. Nxa5 {[%emt 0:13:19]} Bd5 {[%emt 0:03:36]} 18. Nc4 {[%emt 0:00:58]} Be6 {[%emt 0:03:14]} 19. b4 {[%emt 0:03:33]} Qa7 {[%emt 0:02:15]} 20. Na5 {[%emt 0:03:35]} Bd6 {[%emt 0:00:59]} 21. a4 {[%emt 0:11:11]} c5 {[%emt 0:02:36]} 22. bxc5 {[%emt 0:00:15]} Rfc8 {[%emt 0:01:14]} 23. Rxe6 {[%emt 0:05:06]} fxe6 {[%emt 0:03:10]} 24. Qa2 {[%emt 0:00:18]} Bxc5 {[%emt 0:02:16]} 25. Qxe6+ {[%emt 0:00:31]} Kh8 {[%emt 0:00:20]} 26. Nc4 {[%emt 0:00:37]} Qd7 {[%emt 0:04:46]} 27. Qxd7 {[%emt 0:01:27]} Nxd7 {[%emt 0:00:02]} 28. a5 {[%emt 0:00:24]} Rcb8 {[%emt 0:03:01]} 29. Kf1 {[%emt 0:02:33]} Bb4 {[%emt 0:00:27]} 30. Be4 {[%emt 0:05:41]} Ra7 {[%emt 0:00:34]} 31. Rd1 {[%emt 0:01:35]} Bxd2 {[%emt 0:08:07]} 32. Rxd2 {[%emt 0:00:10]} Nc5 {[%emt 0:00:06]} 33. Rxd4 {[%emt 0:01:25]} g6 {[%emt 0:00:14]} 34. Bc6 {[%emt 0:06:51]} Rb4 {[%emt 0:00:33]} 35. Rd8+ {[%emt 0:00:23]} Kg7 {[%emt 0:00:04]} 36. Bd5 {[%emt 0:00:31]} Nd3 {[%emt 0:01:32]} 37. g3 {[%emt 0:02:12]} Re7 {[%emt 0:00:57]} 38. Be4 {[%emt 0:01:59]} Nc5 {[%emt 0:00:57]} 39. Nd2 {[%emt 0:00:57]} Ra4 {[%emt 0:01:27]} 40. Rd5 {[%emt 0:01:14]} Rxa5 {[%emt 0:00:46]} 41. Bc2 {[%emt 0:12:17]} Ra1+ {[%emt 0:00:47]} 42. Kf2 {[%emt 0:00:21]} Rc7 {[%emt 0:00:45]} 43. h4 {[%emt 0:03:05]} Rc1 {[%emt 0:04:16]} 44. Be4 {[%emt 0:00:29]} Ra7 {[%emt 0:01:50]} 45. h5 {[%emt 0:06:48]} Ra5 {[%emt 0:04:31]} 46. hxg6 {[%emt 0:03:12]} Nxe4+ {[%emt 0:01:01]} 47. fxe4 {[%emt 0:00:02]} Rxd5 {[%emt 0:00:13]} 48. exd5 {[%emt 0:00:01]} hxg6 {[%emt 0:01:14]} 49. Ne4 {[%emt 0:01:37]} Rd1 {[%emt 0:00:25]} 50. d6 {[%emt 0:00:40]} Kf7 {[%emt 0:01:25]} 51. Ke3 {[%emt 0:00:42]} Ke6 {[%emt 0:01:47]} 52. Kf4 {[%emt 0:01:43]} Rd5 {[%emt 0:00:37]} 53. g4 {[%emt 0:04:59]} Rd4 {[%emt 0:00:41]} 54. d7 {[%emt 0:00:12]} Kxd7 {[%emt 0:02:50]} 55. Ke5 {[%emt 0:00:08]} Rc4 {[%emt 0:00:33]} 56. Nf6+ {[%emt 0:01:36]} Ke7 {[%emt 0:00:09]} 57. Ne4 {[%emt 0:00:22]} Ra4 {[%emt 0:01:09]} 58. Nf6 {[%emt 0:00:05]} Ra5+ {[%emt 0:02:25]} 59. Nd5+ {[%emt 0:00:02]} Kd7 {[%emt 0:00:04]} 60. Ke4 {[%emt 0:00:18]} Ke6 {[%emt 0:04:31]} 61. Ne3 {[%emt 0:00:14]} Ra4+ {[%emt 0:00:31]} 62. Kf3 {[%emt 0:00:06]} Ke5 0-1

[Event "FIDE Women GP Monaco 2019"]
[Site "Monaco"]
[Date "2019.12.07"]
[Round "5.6"]
[White "Koneru, Humpy"]
[Black "Lagno, Kateryna"]
[Result "1/2-1/2"]
[ECO "D86"]
[WhiteElo "2574"]
[BlackElo "2547"]
[Annotator "ChessBase"]
[PlyCount "69"]
[EventDate "2019.12.03"]
[EventType "tourn"]
[EventCountry "MNC"]
[SourceTitle "playchess.com"]
[Source "ChessBase"]
[SourceQuality "1"]
[TimeControl "40/5400+30:1800+30"]

1. d4 {[%emt 0:00:00]} Nf6 {[%emt 0:00:00]} 2. c4 {[%emt 0:00:00]} g6 {[%emt 0:00:00]} 3. Nc3 {[%emt 0:00:00]} d5 {[%emt 0:00:00]} 4. cxd5 {[%emt 0:00:10]} Nxd5 {[%emt 0:00:00]} 5. e4 {[%emt 0:00:12]} Nxc3 {[%emt 0:00:00]} 6. bxc3 {[%emt 0:00:06]} Bg7 {[%emt 0:00:01]} 7. Bc4 {[%emt 0:00:23]} c5 {[%emt 0:00:23]} 8. Ne2 {[%emt 0:00:09]} Nc6 {[%emt 0:00:10]} 9. Be3 {[%emt 0:00:28]} O-O {[%emt 0:00:13]} 10. O-O {[%emt 0:00:05]} b6 11. dxc5 {[%emt 0:01:33]} Qc7 {[%emt 0:00:40]} 12. Nd4 {[%emt 0:00:28]} Ne5 {[%emt 0:00:19]} 13. Nb5 {[%emt 0:00:24]} Qb8 {[%emt 0:00:12]} 14. Be2 {[%emt 0:00:15]} bxc5 {[%emt 0:00:47]} 15. f4 {[%emt 0:01:30]} Ng4 {[%emt 0:01:34]} 16. Bxc5 {[%emt 0:00:49]} a6 {[%emt 0:00:08]} 17. Na3 {[%emt 0:00:12]} Qc7 {[%emt 0:00:08]} 18. Bd4 {[%emt 0:00:16]} e5 {[%emt 0:00:23]} 19. fxe5 {[%emt 0:00:26]} Nxe5 {[%emt 0:00:05]} 20. Qc1 {[%emt 0:00:42]} Bg4 {[%emt 0:01:16]} 21. Bxg4 {[%emt 0:01:16]} Nxg4 {[%emt 0:00:04]} 22. Qf4 {[%emt 0:00:20]} Qxf4 {[%emt 0:00:21]} 23. Rxf4 {[%emt 0:00:08]} Ne5 {[%emt 0:00:07]} 24. Rb1 {[%emt 0:02:04]} Rac8 {[%emt 0:03:07]} 25. Rff1 {[%emt 0:04:59]} Rfe8 {[%emt 0:24:51]} 26. Rb7 {[%emt 0:09:30]} Bf8 {[%emt 0:05:03]} 27. Nc2 {[%emt 0:07:57]} Nc6 {[%emt 0:01:30]} 28. Bb6 {[%emt 0:07:05]} Rb8 {[%emt 0:17:03]} 29. Rxb8 {[%emt 0:04:26]} Rxb8 {[%emt 0:01:26]} 30. Be3 {[%emt 0:01:13]} Rb2 {[%emt 0:02:41]} 31. Nd4 {[%emt 0:01:15]} Ne5 {[%emt 0:02:24]} 32. Rf2 {[%emt 0:01:35]} Rb1+ {[%emt 0:00:14]} 33. Rf1 {[%emt 0:00:06]} Rb2 {[%emt 0:00:03]} 34. Rf2 {[%emt 0:00:23]} Rb1+ {[%emt 0:00:05]} 35. Rf1 {[%emt 0:00:04]} 1/2-1/2

[Event "FIDE Women GP Monaco 2019"]
[Site "Monaco"]
[Date "2019.12.08"]
[Round "6.1"]
[White "Dzagnidze, Nana"]
[Black "Lagno, Kateryna"]
[Result "0-1"]
[ECO "A05"]
[WhiteElo "2520"]
[BlackElo "2547"]
[Annotator "ChessBase"]
[PlyCount "56"]
[EventDate "2019.12.03"]
[EventType "tourn"]
[EventCountry "MNC"]
[SourceTitle "playchess.com"]
[Source "ChessBase"]
[SourceQuality "1"]
[TimeControl "40/5400+30:1800+30"]

1. Nf3 {[%emt 0:00:00]} Nf6 {[%emt 0:00:00]} 2. c4 {[%emt 0:00:00]} g6 {[%emt 0:00:00]} 3. b3 {[%emt 0:02:27]} Bg7 {[%emt 0:00:14]} 4. Bb2 {[%emt 0:00:06]} O-O {[%emt 0:00:28]} 5. g3 {[%emt 0:01:08]} d6 {[%emt 0:00:19]} 6. Bg2 {[%emt 0:00:17]} e5 {[%emt 0:00:29]} 7. O-O {[%emt 0:00:37]} Re8 {[%emt 0:00:39]} 8. Nc3 {[%emt 0:03:08]} c6 {[%emt 0:00:22]} 9. e4 {[%emt 0:02:30]} a5 10. d4 {[%emt 0:00:30]} exd4 11. Nxd4 {[%emt 0:00:30]} Na6 12. Re1 {[%emt 0:00:30]} Nc5 13. Qc2 Qb6 {[%emt 0:10:50]} 14. Rad1 {[%emt 0:22:24]} Bg4 {[%emt 0:10:48]} 15. f3 {[%emt 0:04:25]} Bd7 {[%emt 0:05:37]} 16. Kh1 {[%emt 0:13:02]} a4 {[%emt 0:22:58]} 17. bxa4 Qb4 18. Nb3 {[%emt 0:03:01]} Be6 {[%emt 0:09:54]} 19. Bf1 {[%emt 0:15:39]} Bxc4 {[%emt 0:05:00]} 20. Bxc4 {[%emt 0:06:20]} Qxc4 {[%emt 0:00:13]} 21. Rxd6 {[%emt 0:04:52]} Nfxe4 {[%emt 0:01:19]} 22. fxe4 {[%emt 0:01:16]} Nxe4 {[%emt 0:00:10]} 23. Nd2 {[%emt 0:02:08]} Nxg3+ {[%emt 0:10:29]} 24. Kg2 {[%emt 0:00:01]} Qf4 {[%emt 0:02:11]} 25. Rxe8+ {[%emt 0:00:46]} Rxe8 {[%emt 0:00:03]} 26. Qd3 {[%emt 0:00:07]} Nf5 {[%emt 0:00:16]} 27. Rd7 {[%emt 0:12:30]} Ne3+ {[%emt 0:00:47]} 28. Kh1 {[%emt 0:00:07]} Qg4 {[%emt 0:00:23]} 0-1

[Event "FIDE Women GP Monaco 2019"]
[Site "Monaco"]
[Date "2019.12.08"]
[Round "6.2"]
[White "Kosteniuk, Alexandra"]
[Black "Koneru, Humpy"]
[Result "1/2-1/2"]
[ECO "C24"]
[WhiteElo "2483"]
[BlackElo "2574"]
[Annotator "ChessBase"]
[PlyCount "80"]
[EventDate "2019.12.03"]
[EventType "tourn"]
[EventCountry "MNC"]
[SourceTitle "playchess.com"]
[Source "ChessBase"]
[SourceQuality "1"]
[TimeControl "40/5400+30:1800+30"]

1. e4 {[%emt 0:00:00]} e5 {[%emt 0:00:00]} 2. Bc4 {[%emt 0:00:00]} Nf6 {[%emt 0:00:00]} 3. d3 {[%emt 0:00:00]} c6 {[%emt 0:00:31]} 4. Nf3 {[%emt 0:00:03]} Be7 {[%emt 0:00:02]} 5. Nc3 {[%emt 0:06:15]} d6 {[%emt 0:03:26]} 6. d4 {[%emt 0:16:35]} O-O {[%emt 0:00:30]} 7. O-O {[%emt 0:00:30]} Na6 {[%emt 0:00:30]} 8. a4 exd4 {[%emt 0:22:07]} 9. Nxd4 {[%emt 0:03:19]} Nb4 {[%emt 0:03:35]} 10. Re1 {[%emt 0:04:43]} Re8 {[%emt 0:13:41]} 11. Bg5 {[%emt 0:05:26]} h6 {[%emt 0:03:18]} 12. Bh4 d5 {[%emt 0:04:14]} 13. exd5 {[%emt 0:04:11]} Nfxd5 {[%emt 0:00:13]} 14. Bxe7 {[%emt 0:14:48]} Rxe7 {[%emt 0:00:02]} 15. Rxe7 {[%emt 0:00:45]} Qxe7 {[%emt 0:01:02]} 16. Nxd5 {[%emt 0:01:21]} Nxd5 {[%emt 0:00:38]} 17. Bxd5 {[%emt 0:00:16]} cxd5 {[%emt 0:00:06]} 18. Qe1 {[%emt 0:03:58]} Qe4 {[%emt 0:10:42]} 19. Qd2 {[%emt 0:05:24]} Bd7 {[%emt 0:01:39]} 20. Re1 {[%emt 0:00:14]} Qg6 {[%emt 0:02:40]} 21. b3 {[%emt 0:00:15]} Qd6 {[%emt 0:11:16]} 22. h3 {[%emt 0:03:44]} Rc8 {[%emt 0:00:23]} 23. Re3 {[%emt 0:00:49]} a6 {[%emt 0:01:48]} 24. Rd3 {[%emt 0:13:34]} Qc7 {[%emt 0:03:19]} 25. c3 {[%emt 0:04:27]} Qb6 {[%emt 0:01:20]} 26. Qf4 {[%emt 0:00:30]} Re8 {[%emt 0:06:43]} 27. Re3 {[%emt 0:00:37]} Rxe3 {[%emt 0:02:26]} 28. Qxe3 {[%emt 0:00:03]} Qd6 {[%emt 0:02:03]} 29. Ne2 {[%emt 0:03:40]} a5 {[%emt 0:01:54]} 30. Qd4 {[%emt 0:03:09]} Qg6 {[%emt 0:00:32]} 31. Kh2 {[%emt 0:01:54]} Qe4 {[%emt 0:01:16]} 32. Qd2 {[%emt 0:00:56]} b5 {[%emt 0:00:48]} 33. axb5 {[%emt 0:00:35]} Bxb5 {[%emt 0:00:01]} 34. Nd4 {[%emt 0:00:16]} Bd7 {[%emt 0:00:43]} 35. Qd1 {[%emt 0:02:46]} Qe5+ {[%emt 0:01:25]} 36. Kg1 {[%emt 0:00:15]} Qc7 {[%emt 0:01:01]} 37. Qf3 {[%emt 0:01:29]} Qe5 {[%emt 0:00:24]} 38. Qd1 {[%emt 0:00:52]} Qc7 {[%emt 0:00:07]} 39. Qd3 {[%emt 0:00:22]} Qe5 {[%emt 0:02:18]} 40. Qd1 {[%emt 0:01:14]} Qc7 {[%emt 0:00:05]} 1/2-1/2

[Event "FIDE Women GP Monaco 2019"]
[Site "Monaco"]
[Date "2019.12.08"]
[Round "6.3"]
[White "Zhao, Xue"]
[Black "Muzychuk, Anna"]
[Result "0-1"]
[ECO "D80"]
[WhiteElo "2485"]
[BlackElo "2537"]
[Annotator "ChessBase"]
[PlyCount "126"]
[EventDate "2019.12.03"]
[EventType "tourn"]
[EventCountry "MNC"]
[SourceTitle "playchess.com"]
[Source "ChessBase"]
[SourceQuality "1"]
[TimeControl "40/5400+30:1800+30"]

1. d4 {[%emt 0:00:00]} Nf6 {[%emt 0:00:00]} 2. c4 {[%emt 0:00:00]} g6 {[%emt 0:00:00]} 3. Nc3 {[%emt 0:00:14]} d5 {[%emt 0:00:00]} 4. Bg5 {[%emt 0:00:31]} Ne4 {[%emt 0:01:07]} 5. Bh4 {[%emt 0:05:01]} Nxc3 {[%emt 0:01:02]} 6. bxc3 {[%emt 0:00:05]} dxc4 {[%emt 0:00:17]} 7. e3 {[%emt 0:01:14]} Be6 {[%emt 0:00:43]} 8. Be2 {[%emt 0:15:16]} Bg7 9. Nh3 c5 {[%emt 0:29:27]} 10. Nf4 {[%emt 0:05:57]} Bf5 {[%emt 0:00:51]} 11. O-O {[%emt 0:11:34]} cxd4 {[%emt 0:01:47]} 12. cxd4 {[%emt 0:04:02]} Nc6 {[%emt 0:01:15]} 13. Bxc4 {[%emt 0:02:19]} O-O {[%emt 0:00:16]} 14. Rc1 Qd6 {[%emt 0:05:23]} 15. Bg3 {[%emt 0:07:02]} Qa3 {[%emt 0:03:25]} 16. Qb3 {[%emt 0:08:17]} Qxb3 {[%emt 0:00:16]} 17. Bxb3 {[%emt 0:00:03]} Rac8 {[%emt 0:02:58]} 18. Nd5 {[%emt 0:05:23]} Rfe8 {[%emt 0:00:55]} 19. Rc5 {[%emt 0:10:20]} e6 {[%emt 0:11:06]} 20. Nc7 {[%emt 0:07:52]} Red8 {[%emt 0:00:10]} 21. Rfc1 {[%emt 0:02:16]} Bf8 {[%emt 0:12:45]} 22. Rb5 {[%emt 0:01:09]} Ba3 {[%emt 0:10:31]} 23. Rc3 {[%emt 0:02:50]} Bb2 {[%emt 0:03:20]} 24. Rcc5 {[%emt 0:00:07]} Ba3 {[%emt 0:05:41]} 25. Rc3 {[%emt 0:00:04]} Bb2 {[%emt 0:00:05]} 26. Rcc5 {[%emt 0:00:04]} Bxd4 {[%emt 0:01:58]} 27. exd4 {[%emt 0:00:57]} Nxd4 {[%emt 0:00:01]} 28. h3 {[%emt 0:00:05]} b6 {[%emt 0:01:20]} 29. Rc4 {[%emt 0:01:23]} Ne2+ {[%emt 0:04:00]} 30. Kh2 {[%emt 0:00:05]} Nxg3 {[%emt 0:00:06]} 31. Kxg3 {[%emt 0:01:41]} Bd3 {[%emt 0:00:31]} 32. Rbb4 {[%emt 0:00:04]} Bxc4 {[%emt 0:03:03]} 33. Rxc4 {[%emt 0:00:04]} Kg7 {[%emt 0:00:43]} 34. Kf3 {[%emt 0:00:59]} h5 {[%emt 0:00:56]} 35. Ke3 {[%emt 0:02:40]} Kf8 {[%emt 0:00:01]} 36. Ba4 {[%emt 0:00:12]} Ke7 {[%emt 0:01:20]} 37. Bb5 {[%emt 0:00:50]} Rd1 {[%emt 0:00:24]} 38. Ba6 {[%emt 0:01:49]} Rcd8 {[%emt 0:00:01]} 39. Rc2 {[%emt 0:00:45]} Re1+ {[%emt 0:00:39]} 40. Be2 {[%emt 0:00:30]} Rc8 {[%emt 0:00:53]} 41. Nd5+ {[%emt 0:31:01]} Kd8 {[%emt 0:30:38]} 42. Rxc8+ {[%emt 0:00:04]} Kxc8 {[%emt 0:00:07]} 43. Nc3 {[%emt 0:00:04]} Kd7 {[%emt 0:00:00]} 44. Nd1 {[%emt 0:00:00]} Rg1 {[%emt 0:00:00]} 45. f4 {[%emt 0:00:00]} Rxg2 {[%emt 0:00:00]} 46. Kf3 {[%emt 0:00:00]} Rh2 {[%emt 0:00:00]} 47. Nf2 {[%emt 0:00:00]} h4 {[%emt 0:00:00]} 48. Bb5+ {[%emt 0:00:00]} Ke7 {[%emt 0:00:00]} 49. Bc6 {[%emt 0:00:00]} Kd6 {[%emt 0:00:00]} 50. Be8 {[%emt 0:00:00]} Ke7 {[%emt 0:00:00]} 51. Bc6 {[%emt 0:00:00]} Kd6 {[%emt 0:00:00]} 52. Be8 {[%emt 0:00:00]} f5 {[%emt 0:00:00]} 53. Bxg6 {[%emt 0:00:00]} Ke7 {[%emt 0:00:00]} 54. Bh5 {[%emt 0:00:00]} b5 {[%emt 0:00:00]} 55. a3 {[%emt 0:03:44]} a5 {[%emt 0:00:00]} 56. Ke3 {[%emt 0:00:04]} Rg2 {[%emt 0:00:00]} 57. Be2 {[%emt 0:00:15]} Rg3+ {[%emt 0:00:00]} 58. Kd4 {[%emt 0:01:56]} Rxa3 {[%emt 0:00:00]} 59. Bxb5 {[%emt 0:00:05]} Rf3 {[%emt 0:00:12]} 60. Nd3 {[%emt 0:00:21]} Rxh3 {[%emt 0:00:08]} 61. Ne5 {[%emt 0:00:03]} Rh1 {[%emt 0:02:49]} 62. Nc6+ {[%emt 0:00:18]} Kf6 {[%emt 0:00:05]} 63. Nxa5 {[%emt 0:00:27]} h3 {[%emt 0:00:18]} 0-1

[Event "FIDE Women GP Monaco 2019"]
[Site "Monaco"]
[Date "2019.12.08"]
[Round "6.4"]
[White "Harika, Dronavalli"]
[Black "Muzychuk, Mariya"]
[Result "1-0"]
[ECO "D79"]
[WhiteElo "2518"]
[BlackElo "2559"]
[Annotator "ChessBase"]
[PlyCount "137"]
[EventDate "2019.12.03"]
[EventType "tourn"]
[EventCountry "MNC"]
[SourceTitle "playchess.com"]
[Source "ChessBase"]
[SourceQuality "1"]
[TimeControl "40/5400+30:1800+30"]

1. Nf3 {[%emt 0:00:00]} d5 {[%emt 0:00:00]} 2. d4 {[%emt 0:00:00]} Nf6 {[%emt 0:00:18]} 3. g3 {[%emt 0:00:00]} g6 {[%emt 0:00:20]} 4. Bg2 {[%emt 0:00:09]} Bg7 {[%emt 0:00:13]} 5. O-O {[%emt 0:00:14]} O-O {[%emt 0:00:03]} 6. c4 c6 {[%emt 0:00:04]} 7. cxd5 {[%emt 0:00:33]} cxd5 {[%emt 0:00:16]} 8. Ne5 {[%emt 0:00:14]} Ne4 9. Nc3 {[%emt 0:00:30]} Bf5 10. Bf4 {[%emt 0:00:30]} Nxc3 11. bxc3 {[%emt 0:00:30]} Nc6 12. Nxc6 {[%emt 0:00:30]} bxc6 13. Qa4 {[%emt 0:00:30]} e6 14. Rad1 {[%emt 0:25:36]} h6 {[%emt 0:40:32]} 15. Rfe1 {[%emt 0:05:53]} g5 {[%emt 0:03:30]} 16. Bc1 {[%emt 0:00:14]} Qb6 {[%emt 0:00:54]} 17. e4 Bg6 {[%emt 0:01:12]} 18. Ba3 {[%emt 0:07:22]} Rfb8 {[%emt 0:02:10]} 19. Bc5 {[%emt 0:06:01]} Qb2 {[%emt 0:04:34]} 20. c4 {[%emt 0:05:52]} dxe4 {[%emt 0:06:52]} 21. Bxe4 {[%emt 0:02:26]} Bxe4 {[%emt 0:00:03]} 22. Rxe4 {[%emt 0:00:06]} Rd8 {[%emt 0:00:09]} 23. Kf1 {[%emt 0:06:08]} Bf8 {[%emt 0:13:25]} 24. Bxf8 {[%emt 0:04:37]} Kxf8 {[%emt 0:00:04]} 25. h4 {[%emt 0:01:51]} Rd6 {[%emt 0:08:20]} 26. hxg5 {[%emt 0:07:59]} hxg5 {[%emt 0:00:03]} 27. Kg1 {[%emt 0:01:36]} Rad8 {[%emt 0:03:03]} 28. Qa5 {[%emt 0:03:46]} Qc2 29. Rde1 Qxc4 {[%emt 0:01:17]} 30. Qxg5 {[%emt 0:00:38]} Qd5 {[%emt 0:05:42]} 31. Qh6+ {[%emt 0:00:34]} Ke7 {[%emt 0:00:55]} 32. Rf4 {[%emt 0:00:34]} Qxa2 {[%emt 0:01:54]} 33. Qg5+ {[%emt 0:02:46]} Ke8 {[%emt 0:02:42]} 34. d5 {[%emt 0:02:56]} Qxd5 {[%emt 0:03:09]} 35. Qg8+ {[%emt 0:02:14]} Kd7 {[%emt 0:00:02]} 36. Qxf7+ {[%emt 0:00:05]} Kc8 {[%emt 0:00:02]} 37. Qxa7 {[%emt 0:00:36]} Qb5 {[%emt 0:01:35]} 38. Rf7 {[%emt 0:02:30]} R6d7 {[%emt 0:00:08]} 39. Qa8+ {[%emt 0:01:00]} Kc7 {[%emt 0:00:05]} 40. Qa7+ {[%emt 0:01:47]} Kc8 {[%emt 0:00:09]} 41. Qa8+ {[%emt 0:31:22]} Kc7 {[%emt 0:32:14]} 42. Rxd7+ {[%emt 0:00:42]} Rxd7 {[%emt 0:00:05]} 43. Ra1 {[%emt 0:00:17]} c5 {[%emt 0:02:10]} 44. Ra7+ {[%emt 0:04:15]} Kd6 {[%emt 0:00:03]} 45. Qf8+ {[%emt 0:00:28]} Kc6 {[%emt 0:01:01]} 46. Ra1 {[%emt 0:00:00]} c4 {[%emt 0:00:00]} 47. Qc8+ {[%emt 0:00:00]} Kb6 {[%emt 0:00:00]} 48. Rc1 {[%emt 0:00:00]} Qc6 {[%emt 0:00:00]} 49. Qxc6+ {[%emt 0:00:00]} Kxc6 {[%emt 0:00:00]} 50. Rxc4+ {[%emt 0:00:00]} Kd5 {[%emt 0:00:00]} 51. Rf4 {[%emt 0:00:00]} e5 {[%emt 0:00:00]} 52. Rf6 {[%emt 0:00:00]} e4 {[%emt 0:00:00]} 53. Kg2 {[%emt 0:00:00]} Re7 {[%emt 0:00:00]} 54. Kh3 {[%emt 0:00:00]} Rh7+ {[%emt 0:00:00]} 55. Kg4 {[%emt 0:00:00]} Rh2 {[%emt 0:00:00]} 56. Kg5 {[%emt 0:00:00]} Kd4 {[%emt 0:00:00]} 57. g4 {[%emt 0:00:00]} Rg2 {[%emt 0:01:47]} 58. Rf5 {[%emt 0:00:00]} Kd3 {[%emt 0:00:33]} 59. Rf4 {[%emt 0:00:00]} Rh2 {[%emt 0:02:11]} 60. Kf5 {[%emt 0:00:00]} Rh8 {[%emt 0:01:52]} 61. g5 {[%emt 0:00:00]} Rf8+ {[%emt 0:00:14]} 62. Kg4 {[%emt 0:00:00]} Rg8 {[%emt 0:00:03]} 63. Kh5 {[%emt 0:00:00]} Rh8+ {[%emt 0:01:05]} 64. Kg6 {[%emt 0:00:00]} Rg8+ {[%emt 0:01:02]} 65. Kh6 {[%emt 0:00:00]} Rh8+ {[%emt 0:00:21]} 66. Kg7 {[%emt 0:00:00]} Rh3 {[%emt 0:00:03]} 67. Kf6 {[%emt 0:00:00]} Rf3 {[%emt 0:00:46]} 68. Kf5 {[%emt 0:00:00]} Ke2 {[%emt 0:00:16]} 69. Kxe4 {[%emt 0:00:00]} 1-0

[Event "FIDE Women GP Monaco 2019"]
[Site "Monaco"]
[Date "2019.12.08"]
[Round "6.5"]
[White "Paehtz, Elisabeth"]
[Black "Gunina, Valentina"]
[Result "1-0"]
[ECO "B11"]
[WhiteElo "2475"]
[BlackElo "2492"]
[Annotator "ChessBase"]
[PlyCount "109"]
[EventDate "2019.12.03"]
[EventType "tourn"]
[EventCountry "MNC"]
[SourceTitle "playchess.com"]
[Source "ChessBase"]
[SourceQuality "1"]
[TimeControl "40/5400+30:1800+30"]

1. e4 {[%emt 0:00:00]} c6 {[%emt 0:00:00]} 2. Nf3 {[%emt 0:00:00]} d5 {[%emt 0:00:00]} 3. Nc3 {[%emt 0:00:00]} Bg4 {[%emt 0:00:00]} 4. h3 {[%emt 0:00:00]} Bxf3 {[%emt 0:00:00]} 5. Qxf3 {[%emt 0:00:00]} Nf6 {[%emt 0:00:00]} 6. Be2 {[%emt 0:00:00]} e6 {[%emt 0:00:06]} 7. O-O {[%emt 0:00:03]} Bc5 {[%emt 0:00:05]} 8. Rd1 {[%emt 0:00:03]} Bd4 {[%emt 0:00:05]} 9. Qf4 {[%emt 0:00:03]} Bxc3 {[%emt 0:00:05]} 10. bxc3 {[%emt 0:00:03]} Nxe4 {[%emt 0:00:09]} 11. Rb1 {[%emt 0:00:04]} Qe7 12. Bf3 {[%emt 0:00:30]} Ng5 13. Bh5 {[%emt 0:00:30]} O-O {[%emt 0:47:45]} 14. d3 {[%emt 0:00:30]} f6 {[%emt 0:00:30]} 15. Qa4 {[%emt 0:00:30]} Qc7 {[%emt 0:00:30]} 16. Qf4 {[%emt 0:00:30]} Qe7 {[%emt 0:03:57]} 17. Qa4 {[%emt 0:00:06]} Qc7 {[%emt 0:07:05]} 18. Re1 e5 {[%emt 0:06:33]} 19. c4 {[%emt 0:27:09]} Nd7 {[%emt 0:15:23]} 20. Ba3 {[%emt 0:26:13]} Rfd8 {[%emt 0:06:55]} 21. Be7 {[%emt 0:05:08]} Rdc8 {[%emt 0:00:22]} 22. Bg4 {[%emt 0:02:02]} b5 {[%emt 0:08:14]} 23. Qa3 {[%emt 0:01:01]} dxc4 {[%emt 0:01:43]} 24. Bd6 {[%emt 0:02:17]} Qd8 {[%emt 0:01:27]} 25. dxc4 {[%emt 0:00:06]} Nb6 {[%emt 0:00:59]} 26. cxb5 {[%emt 0:04:18]} Nc4 {[%emt 0:00:28]} 27. Qb3 {[%emt 0:00:06]} cxb5 {[%emt 0:00:29]} 28. Red1 {[%emt 0:11:02]} Rc6 {[%emt 0:00:35]} 29. Qxb5 {[%emt 0:03:06]} Qe8 {[%emt 0:00:09]} 30. Bc5 {[%emt 0:01:23]} Nb6 {[%emt 0:00:50]} 31. Bd7 {[%emt 0:01:25]} Rxc5 {[%emt 0:00:19]} 32. Qxc5 {[%emt 0:03:43]} Qf7 {[%emt 0:00:39]} 33. Qc6 {[%emt 0:01:10]} Rd8 {[%emt 0:00:36]} 34. Bg4 {[%emt 0:03:17]} Rf8 {[%emt 0:00:30]} 35. Bd7 {[%emt 0:03:02]} Qg6 {[%emt 0:00:30]} 36. h4 {[%emt 0:00:42]} Nxd7 {[%emt 0:00:31]} 37. hxg5 {[%emt 0:00:22]} Nb6 {[%emt 0:00:15]} 38. a4 {[%emt 0:01:33]} Qf5 {[%emt 0:00:27]} 39. gxf6 {[%emt 0:01:05]} h5 {[%emt 0:00:39]} 40. a5 {[%emt 0:02:54]} Rxf6 {[%emt 0:00:29]} 41. Qc5 {[%emt 0:30:05]} Na4 {[%emt 0:30:33]} 42. Qe3 {[%emt 0:02:23]} Nc3 {[%emt 0:00:34]} 43. Qxc3 {[%emt 0:00:00]} Qxf2+ {[%emt 0:00:00]} 44. Kh1 {[%emt 0:00:00]} Rf4 {[%emt 0:00:00]} 45. Rd3 {[%emt 0:00:00]} Rg4 {[%emt 0:00:00]} 46. Rg1 {[%emt 0:00:00]} e4 {[%emt 0:00:00]} 47. Rh3 {[%emt 0:00:00]} Qf5 {[%emt 0:00:00]} 48. Qc4+ {[%emt 0:00:00]} Kh7 {[%emt 0:00:00]} 49. Qe2 {[%emt 0:00:00]} Kg8 {[%emt 0:02:47]} 50. a6 {[%emt 0:00:00]} Qc5 {[%emt 0:01:05]} 51. Rb1 {[%emt 0:00:00]} Qd5 {[%emt 0:00:37]} 52. Rb8+ {[%emt 0:00:00]} Kf7 {[%emt 0:00:02]} 53. Rb5 {[%emt 0:00:00]} Qd4 {[%emt 0:00:44]} 54. Rhxh5 {[%emt 0:00:00]} e3 {[%emt 0:00:45]} 55. Qf3+ {[%emt 0:00:00]} 1-0